Cogmind - Beta 11.1 @@@ ROGUE MODE // 2022.05.17 @ 15:40:29 Player: Jamuson Result: Destroyed by S-27 Virus with Autogun Performance ------------- Evolutions (6) 3000 Regions Visited (23) 4600 Robots Destroyed (300) 1500 Value Destroyed (12498) 12498 Prototype IDs (53) 1060 Alien Tech Used (0) 0 Bonus (3299) 3299 TOTAL SCORE: 25957 Bonus ------- High Alert Combat Kills 1803 Follower Combat Kills 633 Aligned with FarCom 300 Met Data Miner 300 Met Zhirov 300 Met R17 at Cetus 500 Friendly Fire -537 Cogmind --------- Core Integrity 0/1150 Matter 226/300 Energy 81/100 System Corruption 15% Temperature Cool (0) Movement Flying (37) Location -4/Factory Parts ------- > --- POWER (2) -------- (None) > --- PROPULSION (4) --- Field Propulsion Array Field Propulsion Array > --- UTILITY (9) ------ Improved Heat Sink Small Storage Unit Advanced Melee Analysis Suite Advanced Melee Analysis Suite Improved Target Analyzer Cloaking Device > --- WEAPON (4) ------- Autogun > --- INVENTORY (8) ---- Field Propulsion Array Field Propulsion Array Field Propulsion Array Advanced Reaction Control System Railgun Peak State ------------ > --- POWER ------------ Light Angular Momentum Engine Quantum Reactor > --- PROPULSION ------- Centrium Heavy Treads Centrium Heavy Treads > --- UTILITY ---------- Advanced Heat Sink Large Storage Unit Advanced Weight Redist. System Targeting Computer Improved Target Analyzer Improved Weapon Cycler Centrium Medium Armor Plating > --- WEAPON ----------- Advanced Variable Charge Gun Advanced Variable Charge Gun Advanced KE Penetrator Advanced KE Penetrator > --- INVENTORY -------- Quantum Reactor Centrium Heavy Treads Flexi-carbon Leg Advanced Heat Sink Energy Well Phase Shifter Centrium Medium Armor Plating Centrium Medium Armor Plating Centrium Medium Armor Plating Advanced Shield Generator Advanced KE Penetrator Advanced KE Penetrator Mini Grenade Launcher Chainsword [Rating: 122] Favorites ----------- Power Light Angular Momentum Engine Engine Light Angular Momentum Engine Power Core Nuclear Core Reactor Cold Fusion Reactor Propulsion Improved Medium Treads Treads Improved Medium Treads Leg Carbon-fiber Leg Wheel Wheel Hover Unit Gravmag System Flight Unit Cesium-ion Thruster Utility Advanced Heat Sink Device Advanced Heat Sink Storage Large Storage Unit Processor Improved Target Analyzer Hackware Hacking Suite Protection Layered Medium Armor Plating Weapon Coil Gun Energy Gun Precision Beam Rifle Energy Cannon Advanced Plasma Cannon Ballistic Gun Coil Gun Ballistic Cannon Enhanced Gauss Cannon Launcher Mini Grenade Launcher Slashing Weapon Chainsword Build | -11 -10 -10 -9 -9 -9 -8 -8 -7 -7 -7 -7 -6 -6 -6 -6 -6 -5 -5 -5 -5 -5 -5 -4 ------- Run | Scr Mat Min Mat Min Exi Min Mat Fac Low Low Zio Pro Fac Low Low Dat Pro Fac Ext Cet Arc Hub Fac Slots Evolved 12 | . . . 2 . . . 2 2 . . . . 2 . . . . 2 . . . . 2 Power 1 | . . . . . . . . . . . . . 1 . . . . . . . . . . Propulsion 2 | . . . 1 . . . . 1 . . . . . . . . . . . . . . . Utility 7 | . . . . . . . 2 1 . . . . 1 . . . . 1 . . . . 2 Weapon 2 | . . . 1 . . . . . . . . . . . . . . 1 . . . . . Parts Attached 323 | 6 6 . 24 1 . 1 12 17 . 3 2 3 58 5 5 . 3 38 28 29 4 33 45 Power 34 | 1 1 . 2 . . . 1 2 . . . . 5 . 2 . 1 3 4 6 1 2 3 Engine 15 | 1 1 . 1 . . . . . . . . . 2 . 2 . . 2 2 4 . . . Core 14 | . . . 1 . . . 1 2 . . . . 2 . . . 1 1 2 . . 1 3 Reactor 5 | . . . . . . . . . . . . . 1 . . . . . . 2 1 1 . Propulsion 73 | 2 1 . 10 . . . 1 7 . . . 1 15 . . . . 5 12 8 . 3 8 Treads 16 | . . . 3 . . . . . . . . . 5 . . . . 1 . 2 . 3 2 Leg 26 | . . . 4 . . . . . . . . . . . . . . 4 12 6 . . . Wheel 4 | 2 1 . . . . . . . . . . . . . . . . . . . . . 1 Hover 22 | . . . 3 . . . 1 7 . . . 1 10 . . . . . . . . . . Flight 5 | . . . . . . . . . . . . . . . . . . . . . . . 5 Utility 100 | 1 2 . 2 1 . . 7 6 . . 2 . 18 2 2 . 1 12 7 7 . 13 17 Device 61 | . . . 1 1 . . 2 5 . . 1 . 15 . 2 . . 7 2 3 . 11 11 Storage 8 | 1 1 . . . . . 2 1 . . . . 1 . . . . . . . . . 2 Processor 10 | . . . . . . . . . . . . . . . . . . 3 2 . . 2 3 Hackware 2 | . . . 1 . . . . . . . . . 1 . . . . . . . . . . Protection 19 | . 1 . . . . . 3 . . . 1 . 1 2 . . 1 2 3 4 . . 1 Artifact . | . . . . . . . . . . . . . . . . . . . . . . . . Weapon 116 | 2 2 . 10 . . 1 3 2 . 3 . 2 20 3 1 . 1 18 5 8 3 15 17 Energy Gun 32 | 1 . . 3 . . . 2 1 . 2 . 1 6 . . . . . . 3 1 4 8 Energy Cannon 5 | . . . . . . . . . . . . . . . . . . . . . . 3 2 Ballistic Gun 50 | 1 2 . 7 . . . 1 . . . . . 7 2 1 . 1 13 2 5 2 2 4 Ballistic Cannon 7 | . . . . . . . . . . . . . . . . . . 1 3 . . 3 . Launcher 10 | . . . . . . 1 . . . 1 . 1 2 1 . . . 1 . . . 1 2 Special Weapon . | . . . . . . . . . . . . . . . . . . . . . . . . Impact Weapon . | . . . . . . . . . . . . . . . . . . . . . . . . Slashing Weapon 12 | . . . . . . . . 1 . . . . 5 . . . . 3 . . . 2 1 Piercing Weapon . | . . . . . . . . . . . . . . . . . . . . . . . . Special Melee Weapon . | . . . . . . . . . . . . . . . . . . . . . . . . Unidentified Prototypes 16 | . . . 3 . . . 1 1 . . 1 . 3 . . . . . . 4 . 1 2 Parts Lost 99 | . 4 1 5 . . . . 2 . . . 2 7 1 2 . . 13 10 12 6 10 24 Power 13 | . 1 . 1 . . . . . . . . . . . 1 . . . 2 2 2 1 3 Propulsion 28 | . 1 1 2 . . . . 2 . . . 1 5 . . . . 4 2 5 . 2 3 Utility 22 | . 1 . . . . . . . . . . . . 1 . . . 4 2 1 1 5 7 Weapon 36 | . 1 . 2 . . . . . . . . 1 2 . 1 . . 5 4 4 3 2 11 Highest Loss Streak 17 | . 3 1 4 . . . . 2 . . . 2 5 1 1 . . 4 8 8 6 5 17 To Critical Strikes . | . . . . . . . . . . . . . . . . . . . . . . . . Average Slot Usage (%) 92 | . 83 71 90 100 100 100 98 99 100 100 100 99 94 93 96 100 99 91 98 93 77 84 72 Engine 3 | . 11 14 3 . . . . . . . . . 4 . 4 13 9 2 5 8 2 . . Core 5 | . . . 7 11 11 11 9 6 7 7 7 7 5 6 4 . 3 8 5 . . 2 5 Reactor 1 | . . . . . . . . . . . . . 1 6 3 . . . . 1 5 6 2 Treads 8 | . . . 11 . . . . . . . . . 3 26 26 26 26 11 . 1 11 13 6 Leg 4 | . . . 8 . . . . . . . . . . . . . . 7 22 18 . . . Wheel 1 | . 24 14 . . . . . . . . . . . . . . . . . . . . 3 Hover 8 | . . . 5 33 33 33 26 29 30 30 30 30 19 . . . . . . . . . . Device 17 | . . . . 11 11 11 18 22 15 15 15 15 25 18 16 26 26 21 15 15 17 20 17 Storage 7 | . 14 14 11 11 11 11 9 7 15 15 15 15 6 6 6 6 6 5 5 5 5 5 7 Processor 3 | . . . . . . . . . . . . . . . . . . 1 14 11 11 10 9 Hackware 1 | . . . 8 . . . . . . . . . 3 2 . . . . . . . . . Protection 3 | . 4 . . . . . 8 7 7 7 6 7 1 6 12 6 6 6 2 5 2 . . Energy Gun 7 | . 8 . 3 22 22 22 18 22 15 20 23 17 7 . . . . . . 3 4 9 12 Ballistic Gun 13 | . 18 28 27 11 11 . 6 . . . . . 9 19 20 20 19 22 15 15 13 3 1 Naked Turns 55 | . . . . . . . . . . . . . . . . . . . . . . . 55 Heaviest Build 101 | 14 22 19 25 25 25 23 33 38 30 30 29 29 59 69 71 71 83 93 88 80 81 101 98 Greatest Support 169 | 20 26 16 60 24 24 24 33 43 36 36 36 36 129 129 120 120 120 120 74 169 169 169 134 Greatest Overweight (x) 12 | 3 1 1 3 1 1 . . 1 . . . 1 12 . . . . 3 1 1 . 1 3 Average Overweight (x) . | . . 1 . 1 1 . . . . . . . . . . . . . . . . . 1 Largest Inventory Capacity 15 | 8 10 10 10 10 10 10 10 10 10 10 10 10 15 15 15 15 15 15 15 15 15 15 15 Average Capacity 12 | 7 9 10 10 10 10 10 10 10 10 10 10 10 10 15 15 15 15 15 15 15 15 15 11 Most Carried 15 | 4 5 3 10 10 10 10 10 10 10 10 10 10 14 14 12 11 13 15 15 15 15 15 15 Average Carried 10 | 2 3 3 4 10 9 10 9 9 10 10 10 9 9 12 11 11 11 13 13 14 14 13 11 Final Capacity 15 | 8 10 10 10 10 10 10 10 10 10 10 10 10 15 15 15 15 15 15 15 15 15 15 8 Final Carried 15 | 4 3 3 10 10 10 10 10 10 10 10 10 9 14 12 11 11 13 14 14 15 12 15 8 Class Distribution -------------------- 28% | Scavenger-Gunner 19% | Skirmisher 14% | Tank 14% | Mutant 11% | Gunner 5% | Scavenger-Mutant 3% | Scavenger-Tank Dominant Class ---------------- Mutant | -10/Materials Mutant | -10/Mines Scavenger-Gunner | -9/Materials Gunner | -9/Mines Gunner | -9/Exiles Skirmisher | -8/Mines Skirmisher | -8/Materials Skirmisher | -7/Factory Mutant | -7/Lower Caves Tank | -7/Lower Caves Tank | -7/Zion Tank | -6/Proximity Caves Mutant | -6/Factory Tank | -6/Lower Caves Tank | -6/Lower Caves Gunner | -6/Data Miner Gunner | -5/Proximity Caves Skirmisher | -5/Factory Scavenger-Gunner | -5/Extension Scavenger-Gunner | -5/Cetus Scavenger-Mutant | -5/Archives Scavenger-Gunner | -5/Hub_04(d) Scavenger-Gunner | -4/Factory Resources | -11 -10 -10 -9 -9 -9 -8 -8 -7 -7 -7 -7 -6 -6 -6 -6 -6 -5 -5 -5 -5 -5 -5 -4 ----------- Run | Scr Mat Min Mat Min Exi Min Mat Fac Low Low Zio Pro Fac Low Low Dat Pro Fac Ext Cet Arc Hub Fac Matter Collected 8494 | 278 189 49 565 40 . 10 155 218 30 65 53 33 846 297 151 . 204 1553 911 1102 . 1230 515 Remotely 1854 | . . . . . . . . . . . . . . . . . . 1410 444 . . . . Salvage Created 12939 | 96 452 107 1088 67 . . 387 451 24 154 . 121 1321 406 255 . 232 1904 716 1205 65 2269 1619 Parts 602 | 6 24 15 71 3 . . 13 25 . 6 . 2 60 13 11 . 7 98 30 44 2 98 74 Haulers Intercepted 9 | . . . 3 . . . . . . . . . 5 . . . . . . . . . 1 Recyclers Shooed 3 | . . . 1 . . . . . . . . . 1 . . . . . . . . . 1 Parts Field Recycled . | . . . . . . . . . . . . . . . . . . . . . . . . Retrieved Matter . | . . . . . . . . . . . . . . . . . . . . . . . . Parts Self-Destructed 41 | . . . . . . . . . . 5 . . . 12 10 . 14 . . . . . . Prevented . | . . . . . . . . . . . . . . . . . . . . . . . . Kills | -11 -10 -10 -9 -9 -9 -8 -8 -7 -7 -7 -7 -6 -6 -6 -6 -6 -5 -5 -5 -5 -5 -5 -4 ------- Run | Scr Mat Min Mat Min Exi Min Mat Fac Low Low Zio Pro Fac Low Low Dat Pro Fac Ext Cet Arc Hub Fac Combat Hostiles Destroyed 218 | . 11 6 21 3 . . 7 6 . 6 . 4 12 9 4 . 4 30 11 20 3 35 26 Melee 3 | . . . . . . . . . . . . . . . . . . . . . . . 3 Guns 164 | . 9 6 21 3 . . 6 6 . 2 . 2 6 6 4 . 4 30 9 15 3 17 15 Cannons 21 | . . . . . . . . . . . . . . . . . . . 2 5 . 13 1 AOE 24 | . 2 . . . . . . . . 4 . 1 6 3 . . . . . . . 4 4 Classes Destroyed 21 | 2 3 . 3 1 . . . 1 . . . . 3 1 1 . . 1 1 . . 3 1 Worker 14 | . . . . . . . . . . . . . 2 . . . . 3 . . . 5 4 Builder 17 | . . . . . . . . . . . . . 1 . . . . 2 2 . . 3 9 Tunneler 1 | 1 . . . . . . . . . . . . . . . . . . . . . . . Hauler 9 | . . . 3 . . . . . . . . . 5 . . . . . . . . . 1 Recycler 9 | 1 . . 1 . . . . . . . . . 1 . . . . . . . . 4 2 Mechanic 1 | . . . . . . . . . . . . . . . . . . 1 . . . . . Operator 4 | . . . 1 . . . . . . . . . . . . . . 1 . . . 2 . Watcher 25 | . 2 . 3 . . . 1 5 . . . . 5 . . . . 2 . 2 . 4 1 Swarmer 48 | . 3 6 6 . . . . . . 4 . 1 6 3 . . . 5 . 4 . 4 6 Saboteur 2 | . . . . . . . . . . . . . . . . . . . . . . 1 1 Grunt 72 | . 8 . 10 1 . . 4 4 . 1 . 1 . 3 2 . 2 12 3 6 1 14 . Brawler 2 | . . . . . . . . . . . . . . . 1 . . . . 1 . . . Duelist 5 | . . . . . . . . . . . . . . 1 . . . . . 1 . 3 . Sentry 26 | . . . 5 . . . 3 . . . . 1 2 1 1 . . 4 4 . 2 3 . Demolisher 2 | . . . . 2 . . . . . . . . . . . . . . . . . . . Specialist 6 | . . . . . . . . . . . . . . . . . . . . . . 4 2 Hunter 12 | . . . . . . . . . . . . . 1 1 . . . . 1 1 . 2 6 Programmer 31 | . . . . . . . . 2 . 1 . 1 3 . . . 2 9 1 . . 2 10 Heavy 2 | . . . . . . . . . . . . . . . . . . . . . . 2 . Behemoth 2 | . . . . . . . . . . . . . . . . . . . 2 . . . . Cetus Guard 7 | . . . . . . . . . . . . . . . . . . . . 7 . . . Striker 1 | . . . . . . . . . . . . . . . . . . . . . . . 1 Thug 2 | . . . . . . . . . . . . . . . . . . . . 2 . . . Best Kill Streak 17 | 1 5 3 6 3 . . 6 2 . 4 . 3 3 4 3 . 2 9 5 8 2 9 17 Combat Bots Only 10 | . 5 3 6 3 . . 6 2 . 4 . 3 3 4 3 . 2 7 4 7 2 8 10 Max Kills in Single Turn 5 | 1 2 2 2 1 . . 2 1 . 2 . 1 3 2 1 . 1 2 1 2 1 5 4 Gunslinging 1 | . . 1 1 . . . 1 . . . . . . . . . . 1 . . . . . Exploded 3 | . 2 . . . . . . . . 2 . 1 3 2 . . . . . . . 2 1 Melee 1 | . . . . . . . . . . . . . . . . . . . . . . . 1 Uniques/NPCs Destroyed . | . . . . . . . . . . . . . . . . . . . . . . . . Combat | -11 -10 -10 -9 -9 -9 -8 -8 -7 -7 -7 -7 -6 -6 -6 -6 -6 -5 -5 -5 -5 -5 -5 -4 -------- Run | Scr Mat Min Mat Min Exi Min Mat Fac Low Low Zio Pro Fac Low Low Dat Pro Fac Ext Cet Arc Hub Fac Damage Taken 20470 | . 493 89 1117 157 . . 228 190 6 255 . 378 900 623 807 . 406 1820 1388 2419 2035 2710 4449 Core 2718 | . 107 21 200 94 . . 33 . . 13 . 58 193 24 55 . . 81 187 171 54 263 1164 Absorbed by Shields 154 | . . . . . . . . . . . . . . . . . . . . . . 19 135 Reduced by Siege Mode 149 | . . . . . . . . . . . . . . . . . . . . . . 149 . Regen/Repaired (Parts) 137 | . 85 . . . . . 52 . . . . . . . . . . . . . . . . Core Remaining (%) 64 | 100 . 48 . . . 26 94 . . . . 89 . . . . 68 . . . . 24 . Volleys Fired 659 | 6 39 9 91 3 . . 23 21 . 10 . 11 53 21 20 . 15 80 37 58 12 77 73 Largest 4 | 2 2 2 3 3 . . 3 3 . 3 . 3 3 3 3 . 3 4 4 4 3 4 4 Hottest 412 | 60 60 40 145 145 . . 152 183 . 183 . 183 177 90 90 . 90 120 180 230 105 412 336 Shots Fired 1923 | 12 77 18 232 9 . . 69 63 1 21 . 31 150 53 62 . 44 295 129 188 27 244 198 Gun 1739 | 12 77 18 232 9 . . 68 63 1 17 . 25 147 50 62 . 44 295 107 154 27 163 168 Cannon 160 | . . . . . . . . . . . . . . . . . . . 22 34 . 78 26 Launcher 24 | . . . . . . . 1 . . 4 . 6 3 3 . . . . . . . 3 4 Special . | . . . . . . . . . . . . . . . . . . . . . . . . Kinetic 1296 | 6 48 18 206 3 . . 22 . . . . . 66 50 62 . 44 295 129 174 27 128 18 Thermal 515 | . . . 26 6 . . 46 63 1 17 . 25 48 . . . . . . 14 . 113 156 Explosive 24 | . . . . . . . 1 . . 4 . 6 3 3 . . . . . . . 3 4 Electromagnetic 88 | 6 29 . . . . . . . . . . . 33 . . . . . . . . . 20 Robot Hit Streak 30 | 5 12 2 12 3 . . 18 13 . 11 . 8 16 8 7 . 7 12 13 7 3 30 14 Robot Miss Streak 7 | 2 3 2 5 1 . . 3 2 . 2 . 1 5 6 3 . 2 5 4 7 5 4 4 Penetration Max 1 | . . . . . . . . . . . . . 1 1 1 . 1 1 1 1 . 1 1 Secondary Targets 28 | . . 2 4 . . . 1 1 . . . . . . 1 . 3 7 5 3 . . 1 Max Gunslinging Chain 1 | . . 1 1 . . . 1 1 . . . . . . 1 . 1 1 1 1 . . 1 Shots Hit Robots 1268 | 7 52 10 156 5 . . 51 44 2 12 . 20 104 26 38 . 27 173 83 106 12 184 156 Core Hits 628 | 3 19 6 55 4 . . 17 22 2 10 . 10 52 17 13 . 7 79 41 52 5 117 97 Critical Kills 24 | . . . . . . . . . . . . . . 1 1 . 3 3 4 6 1 4 1 Critical Parts Destroyed 32 | . . . . . . . . . . . . . 1 1 1 . 1 7 8 8 . 4 1 Critical Strikes 93 | . 1 . 1 1 . . 3 3 . 1 . 2 5 2 2 . 4 10 16 22 1 15 4 Burn 15 | . . . 1 1 . . 3 3 . 1 . 2 4 . . . . . . . . . . Destroy 59 | . . . . . . . . . . . . . 1 2 2 . 4 10 13 16 1 8 2 Blast 16 | . . . . . . . . . . . . . . . . . . . 3 6 . 7 . Corrupt 1 | . 1 . . . . . . . . . . . . . . . . . . . . . . Sever 2 | . . . . . . . . . . . . . . . . . . . . . . . 2 Melee Attacks 47 | . . . . . . . . 1 2 . . . 10 . . . . 4 . . . 1 29 Impact . | . . . . . . . . . . . . . . . . . . . . . . . . Slashing 47 | . . . . . . . . 1 2 . . . 10 . . . . 4 . . . 1 29 Piercing . | . . . . . . . . . . . . . . . . . . . . . . . . Sneak Attacks 1 | . . . . . . . . . . . . . 1 . . . . . . . . . . Combat Hostiles . | . . . . . . . . . . . . . . . . . . . . . . . . Follow-up Attacks . | . . . . . . . . . . . . . . . . . . . . . . . . Damage Inflicted 32504 | 94 815 118 1647 82 . . 861 887 169 458 . 486 2277 744 898 . 732 4304 2160 3400 347 6339 5686 Guns 24632 | 94 690 118 1647 82 . . 827 887 . 241 . 320 1888 561 898 . 732 4212 1675 2691 347 3664 3058 Cannons 3950 | . . . . . . . . . . . . . . . . . . . 485 709 . 2207 549 Explosions 3158 | . 125 . . . . . 34 . . 217 . 166 317 183 . . . 92 . . . 436 1588 Melee 700 | . . . . . . . . . 169 . . . 72 . . . . . . . . . 459 Ramming 64 | . . . . . . . . . . . . . . . . . . . . . . 32 32 Kinetic 18698 | 25 381 118 1423 15 . . 240 . . . . . 1006 561 898 . 732 4212 2160 3216 347 3256 108 Thermal 9144 | . 125 . 224 67 . . 587 887 . 241 . 320 652 . . . . 92 . 184 . 2615 3150 Explosive 2941 | . . . . . . . 34 . . 217 . 166 317 183 . . . . . . . 436 1588 Electromagnetic 957 | 69 309 . . . . . . . . . . . 230 . . . . . . . . . 349 Impact . | . . . . . . . . . . . . . . . . . . . . . . . . Slashing 700 | . . . . . . . . . 169 . . . 72 . . . . . . . . . 459 Piercing . | . . . . . . . . . . . . . . . . . . . . . . . . Highest Corruption 15 | . . . . . . . . 5 5 6 6 1 5 5 9 9 14 2 2 3 3 5 15 Average Corruption 4 | . . . . . . . . 4 5 5 6 1 3 5 6 9 11 1 2 2 3 3 7 Corruption Purged 2 | . . . . . . . . . . . . . . . . . . 2 . . . . . Corruption Blocked . | . . . . . . . . . . . . . . . . . . . . . . . . Effects 216 | . . . . . . . . 17 3 10 1 . 31 15 22 5 26 10 16 12 5 23 20 Message Errors 47 | . . . . . . . . 4 1 . 1 . 5 4 7 2 5 4 3 5 2 1 3 Matter Fused 61 | . . . . . . . . 6 1 3 . . 10 2 4 2 5 3 7 2 1 4 11 Heat Flow Errors 20 | . . . . . . . . . . 2 . . 3 1 2 . 4 1 1 1 1 4 . Energy Discharges 28 | . . . . . . . . 3 . 1 . . 5 1 2 1 5 . 3 2 1 4 . Parts Rejected 3 | . . . . . . . . . . . . . . 1 . . 1 . . . . . 1 Data Loss (minor) 23 | . . . . . . . . 3 . 2 . . 4 . 5 . 2 2 . . . 4 1 Data Loss (major) 8 | . . . . . . . . . . 1 . . . 1 . . 1 . 1 . . 4 . Misfires 9 | . . . . . . . . . 1 . . . 1 2 2 . 2 . . 1 . . . Alerts 5 | . . . . . . . . 1 . . . . 1 1 . . . . 1 . . . 1 Misdirections 2 | . . . . . . . . . . . . . . . . . . . . . . . 2 Weapon Failures 10 | . . . . . . . . . . 1 . . 2 2 . . 1 . . 1 . 2 1 Overload Shots 3 | . . . . . . . . . . . . . . . . . . . . . . 3 . Effects 1 | . . . . . . . . . . . . . . . . . . . . . . 1 . Energy Bleed 1 | . . . . . . . . . . . . . . . . . . . . . . 1 . Overflow Damage 297 | . . . . . . . 12 . . . . . . . . . . 72 . . . 101 112 Projectiles 80 | . . . . . . . . . . . . . . . . . . . . . . 54 26 Explosions 215 | . . . . . . . 12 . . . . . . . . . . 72 . . . 47 84 Melee 2 | . . . . . . . . . . . . . . . . . . . . . . . 2 Knockbacks 19 | . . . . . . . . . . . . . . . . . . . 3 . . 16 . Impact . | . . . . . . . . . . . . . . . . . . . . . . . . Kinetic 17 | . . . . . . . . . . . . . . . . . . . 3 . . 14 . Secondary 2 | . . . . . . . . . . . . . . . . . . . . . . 2 . Self-Inflicted Damage 243 | . 33 . . . . . . . . 40 . . 78 . . . . . . . . 17 75 Shots 6 | . 1 . . . . . . . . 1 . . 1 . . . . . . . . 1 2 Rammed 11 | . . . . . . . . . . . . . . . . . . . . . . 2 9 Targets Rammed 11 | . . . . . . . . . . . . . . . . . . . . . . 2 9 Kicked . | . . . . . . . . . . . . . . . . . . . . . . . . Crushed . | . . . . . . . . . . . . . . . . . . . . . . . . Highest Temperature 494 | . 63 . 333 120 . . 306 381 5 214 . 244 268 250 192 . 193 454 159 468 194 494 114 Average Temperature 106 | . 21 . 89 65 . . 95 111 4 76 . 130 69 52 91 . 84 139 46 168 56 134 37 Received Heat Transfer 3561 | . 213 . 306 40 . . 81 72 . 36 . 99 90 243 315 . . 387 225 405 162 750 137 Effects 15 | . . . 1 . . . . . . . . . . . . . . 4 . 7 . 3 . Shutdowns 3 | . . . . . . . . . . . . . . . . . . 1 . . . 2 . Interference 2 | . . . . . . . . . . . . . . . . . . . . 2 . . . Matter Decay 3 | . . . 1 . . . . . . . . . . . . . . 1 . 1 . . . Damage (minor) 2 | . . . . . . . . . . . . . . . . . . 1 . . . 1 . Damage (major) 5 | . . . . . . . . . . . . . . . . . . 1 . 4 . . . Siege Activations 6 | . . . . . . . . . . . . . . . . . . . . . . 6 . Total Turns 103 | . . . . . . . . . . . . . . . . . . . . . . 103 . Longest Duration 25 | . . . . . . . . . . . . . . . . . . . . . . 25 . Robots Corrupted 1 | . . . . . . . . . . . . . . . . . . . . . . . 1 Combat Hostiles 1 | . . . . . . . . . . . . . . . . . . . . . . . 1 Parts Fried 5 | . 1 . . . . . . . . . . . 2 . . . . . . . . . 2 Impact Corruptions . | . . . . . . . . . . . . . . . . . . . . . . . . Robots Melted 6 | . . . . . . . 1 . . . . 1 1 . . . . . . . . 1 2 Combat Hostiles 5 | . . . . . . . 1 . . . . 1 . . . . . . . . . 1 2 Parts Melted 54 | . . . 1 . . . 8 4 . . . 4 10 . . . . . . . . 13 14 Heat Transferred 17631 | . 150 . 555 222 . . 1480 1887 . 518 . 777 1702 . . . . 50 . 259 . 4414 5617 Parts Sabotaged 1 | . . . . . . . . . . . . . . . . . . . . . . . 1 Parts Stolen . | . . . . . . . . . . . . . . . . . . . . . . . . Parts Stripped . | . . . . . . . . . . . . . . . . . . . . . . . . Power Chain Reactions 2 | . 2 . . . . . . . . . . . . . . . . . . . . . . Missiles Intercepted . | . . . . . . . . . . . . . . . . . . . . . . . . Alert | -11 -10 -10 -9 -9 -9 -8 -8 -7 -7 -7 -7 -6 -6 -6 -6 -6 -5 -5 -5 -5 -5 -5 -4 ------- Run | Scr Mat Min Mat Min Exi Min Mat Fac Low Low Zio Pro Fac Low Low Dat Pro Fac Ext Cet Arc Hub Fac Peak Influence 1345 | 10 314 211 435 149 . . 318 554 . . . . 420 . . . . 716 681 562 195 886 1345 Initial 416 | . 6 81 81 54 . . . 137 . . . . 72 . . . . 31 350 200 160 60 416 Average 346 | 2 183 173 218 124 . . 221 326 . . . . 155 . . . . 314 482 384 172 529 888 Maximum Alert Level 4 | . 1 1 2 . . . 1 2 . . . . 2 . . . . 3 2 2 . 3 4 Low Security (%) 37 | 100 41 55 43 100 . 100 29 22 . . . . 72 . . . . 52 . 3 100 17 . Level 1 26 | . 58 44 54 . . . 70 53 . . . . 21 . . . . 1 16 37 . 24 . Level 2 26 | . . . 2 . . . . 24 . . . . 6 . . . . 40 83 58 . 18 33 Level 3 7 | . . . . . . . . . . . . . . . . . . 4 . . . 39 39 Level 4 2 | . . . . . . . . . . . . . . . . . . . . . . . 27 Level 5 . | . . . . . . . . . . . . . . . . . . . . . . . . High Security . | . . . . . . . . . . . . . . . . . . . . . . . . Max Security . | . . . . . . . . . . . . . . . . . . . . . . . . Squads Dispatched 64 | . 3 . 3 . . . 4 7 . . . . 11 . . . . 9 4 . . 11 12 Investigation 24 | . 2 . 3 . . . 4 5 . . . . 6 . . . . 1 1 . . 1 1 Extermination 10 | . . . . . . . . 1 . . . . 3 . . . . 3 . . . 1 2 Reinforcement 19 | . 1 . . . . . . . . . . . 2 . . . . 2 3 . . 7 4 Assault 4 | . . . . . . . . . . . . . . . . . . . . . . 1 3 Garrison 7 | . . . . . . . . 1 . . . . . . . . . 3 . . . 1 2 Intercept . | . . . . . . . . . . . . . . . . . . . . . . . . Searches Triggered . | . . . . . . . . . . . . . . . . . . . . . . . . Data Miner Redirects 5 | . . . . . . . . . . . . . . . . . . 1 1 . . . 3 Construction Impeded 3 | . . . . . . . . . . . . . . . . . . . 1 . . 1 1 Haulers Reinforced 1 | . . . . . . . . . . . . . . . . . . 1 . . . . . Active Scanning Responses . | . . . . . . . . . . . . . . . . . . . . . . . . Cargo Convoy Interrupts 1 | . . . . . . . . . . . . . . . . . . . . . . . 1 Stealth | -11 -10 -10 -9 -9 -9 -8 -8 -7 -7 -7 -7 -6 -6 -6 -6 -6 -5 -5 -5 -5 -5 -5 -4 --------- Run | Scr Mat Min Mat Min Exi Min Mat Fac Low Low Zio Pro Fac Low Low Dat Pro Fac Ext Cet Arc Hub Fac Distress Signals 17 | . . . 2 . . . 1 2 . . . . . . . . . 1 4 2 1 3 1 Communications Jammed 3 | . . . . . . . . 2 . . . . 1 . . . . . . . . . . Distress Signals 2 | . . . . . . . . 1 . . . . 1 . . . . . . . . . . Times Spotted 377 | . 23 5 33 13 . . 14 18 1 5 . 8 26 9 5 . 7 31 23 24 17 50 65 Peak Tracking Total 19 | . 4 3 5 19 . . 5 4 3 4 . 3 5 4 4 . 4 5 6 9 16 6 12 Tactical Retreats 24 | . 2 . . . . . 1 1 1 . . 2 5 . 1 . . 1 1 . . 1 8 Traps | -11 -10 -10 -9 -9 -9 -8 -8 -7 -7 -7 -7 -6 -6 -6 -6 -6 -5 -5 -5 -5 -5 -5 -4 ------- Run | Scr Mat Min Mat Min Exi Min Mat Fac Low Low Zio Pro Fac Low Low Dat Pro Fac Ext Cet Arc Hub Fac Traps Triggered 13 | . 1 . 1 . . . . 3 . . . . 5 . . . . . 2 . . . 1 Indirectly . | . . . . . . . . . . . . . . . . . . . . . . . . Trap Hack Attempts . | . . . . . . . . . . . . . . . . . . . . . . . . Triggered . | . . . . . . . . . . . . . . . . . . . . . . . . Disarmed . | . . . . . . . . . . . . . . . . . . . . . . . . Reprogrammed . | . . . . . . . . . . . . . . . . . . . . . . . . Reused . | . . . . . . . . . . . . . . . . . . . . . . . . Traps Extracted . | . . . . . . . . . . . . . . . . . . . . . . . . Installed . | . . . . . . . . . . . . . . . . . . . . . . . . Triggered 1 | . . . . . . . . . . . . . . . 1 . . . . . . . . Machines | -11 -10 -10 -9 -9 -9 -8 -8 -7 -7 -7 -7 -6 -6 -6 -6 -6 -5 -5 -5 -5 -5 -5 -4 ---------- Run | Scr Mat Min Mat Min Exi Min Mat Fac Low Low Zio Pro Fac Low Low Dat Pro Fac Ext Cet Arc Hub Fac Machines Disabled 51 | . 1 . . . . . . . . . . . 2 . . . . 13 1 1 1 14 18 Max in Single Turn 9 | . 1 . . . . . . . . . . . 2 . . . . 9 1 1 1 2 6 Garrison Access 2 | . . . . . . . 1 1 . . . . . . . . . . . . . . . Energy Cycler 1 | . . . . . . . . . . . . . . . . . . . 1 . . . . Machines Sabotaged . | . . . . . . . . . . . . . . . . . . . . . . . . Garrisons Compromised . | . . . . . . . . . . . . . . . . . . . . . . . . Overloaded Fab Kills . | . . . . . . . . . . . . . . . . . . . . . . . . Hacking | -11 -10 -10 -9 -9 -9 -8 -8 -7 -7 -7 -7 -6 -6 -6 -6 -6 -5 -5 -5 -5 -5 -5 -4 --------- Run | Scr Mat Min Mat Min Exi Min Mat Fac Low Low Zio Pro Fac Low Low Dat Pro Fac Ext Cet Arc Hub Fac Machines Accessed 71 | . 7 . 5 . 1 . 8 7 . . . . 12 1 . 4 . 4 10 3 . 5 4 Terminals 57 | . 6 . 5 . . . 6 6 . . . . 9 . . . . 4 10 3 . 5 3 Fabricators 2 | . . . . . . . . . . . . . 2 . . . . . . . . . . Repair Stations 2 | . 1 . . . . . 1 . . . . . . . . . . . . . . . . Recycling Units . | . . . . . . . . . . . . . . . . . . . . . . . . Scanalyzers 2 | . . . . . . . . . . . . . 1 . . . . . . . . . 1 Garrison Access 2 | . . . . . . . 1 1 . . . . . . . . . . . . . . . Total Hacks 224 | . 22 . 22 . 1 . 21 19 . . . . 42 1 . 28 . 18 23 6 . 12 9 Successful 126 | . 12 . 12 . 1 . 8 11 . . . . 17 1 . 28 . 10 12 2 . 8 4 Failed 95 | . 9 . 9 . . . 12 8 . . . . 25 . . . . 8 11 4 . 4 5 Catastrophic 11 | . . . . . . . 2 2 . . . . 3 . . . . 1 . 1 . 1 1 Database Lockouts 3 | . 1 . 1 . . . 1 . . . . . . . . . . . . . . . . Manual 126 | . 14 . 17 . 1 . 17 14 . . . . 28 . . . . 13 6 . . 10 6 Terminals 174 | . 20 . 22 . . . 18 16 . . . . 33 . . . . 18 23 6 . 12 6 Fabricators 7 | . . . . . . . . . . . . . 7 . . . . . . . . . . Repair Stations 4 | . 2 . . . . . 2 . . . . . . . . . . . . . . . . Recycling Units . | . . . . . . . . . . . . . . . . . . . . . . . . Scanalyzers 5 | . . . . . . . . . . . . . 2 . . . . . . . . . 3 Garrison Access 4 | . . . . . . . 1 3 . . . . . . . . . . . . . . . Terminal Hacks 77 | . 5 . 7 . 1 . 3 4 . . . . 6 1 . 28 . 6 9 2 . 4 1 Record 13 | . . . . . . . . . . . . . . . . 11 . . . 2 . . . Part Schematic 12 | . . . . . . . . . . . . . . . . 10 . 2 . . . . . Robot Schematic 4 | . . . . . . . . . . . . . . . . 4 . . . . . . . Robot Analysis 6 | . 2 . 1 . . . 2 . . . . . . . . . . 1 . . . . . Prototype ID Bank 5 | . . . . . . . . . . . . . 2 . . 3 . . . . . . . Open Door 8 | . . . . . . . . . . . . . . 1 . . . 1 6 . . . . Level Access Points 1 | . . . . . . . . . . . . . . . . . . . 1 . . . . Branch Access Points 7 | . 1 . 1 . . . 1 1 . . . . 2 . . . . 1 . . . . . Terminal Index 5 | . . . 1 . . . . 1 . . . . . . . . . 1 . . . 1 1 Alert Level 6 | . . . 2 . . . . 1 . . . . 1 . . . . . 1 . . 1 . Unreport Threat 2 | . . . 1 . . . . . . . . . . . . . . . . . . 1 . Locate Traps 5 | . 1 . 1 . . . . 1 . . . . 1 . . . . . . . . 1 . Hauler Manifests 1 | . 1 . . . . . . . . . . . . . . . . . . . . . . Zone Layout 1 | . . . . . . . . . . . . . . . . . . . 1 . . . . EX-Prototype ID Bank 1 | . . . . . 1 . . . . . . . . . . . . . . . . . . Fabricator Hacks 4 | . . . . . . . . . . . . . 4 . . . . . . . . . . Network Status 1 | . . . . . . . . . . . . . 1 . . . . . . . . . . Load Schematic 2 | . . . . . . . . . . . . . 2 . . . . . . . . . . Build 1 | . . . . . . . . . . . . . 1 . . . . . . . . . . Repair Station Hacks 4 | . 2 . . . . . 2 . . . . . . . . . . . . . . . . Scan Component 2 | . 1 . . . . . 1 . . . . . . . . . . . . . . . . Repair 2 | . 1 . . . . . 1 . . . . . . . . . . . . . . . . Recycling Unit Hacks . | . . . . . . . . . . . . . . . . . . . . . . . . Scanalyzer 4 | . . . . . . . . . . . . . 2 . . . . . . . . . 2 Insert Component 2 | . . . . . . . . . . . . . 1 . . . . . . . . . 1 Analyze 2 | . . . . . . . . . . . . . 1 . . . . . . . . . 1 Garrison Access Hacks . | . . . . . . . . . . . . . . . . . . . . . . . . Unauthorized Hacks 37 | . 5 . 5 . . . 3 7 . . . . 5 . . . . 4 3 . . 4 1 Terminals 35 | . 5 . 5 . . . 2 6 . . . . 5 . . . . 4 3 . . 4 1 Assimilate 4 | . 1 . . . . . . 2 . . . . . . . . . 1 . . . . . Botnet 29 | . 4 . 4 . . . 2 4 . . . . 4 . . . . 3 3 . . 4 1 Operators 2 | . . . 1 . . . . . . . . . 1 . . . . . . . . . . Fabricators . | . . . . . . . . . . . . . . . . . . . . . . . . Repair Stations . | . . . . . . . . . . . . . . . . . . . . . . . . Recycling Units . | . . . . . . . . . . . . . . . . . . . . . . . . Scanalyzers . | . . . . . . . . . . . . . . . . . . . . . . . . Garrison Access 2 | . . . . . . . 1 1 . . . . . . . . . . . . . . . Jam 2 | . . . . . . . 1 1 . . . . . . . . . . . . . . . Data Cores Recovered 1 | . . . . . . . . . . . . . . . . . . . . . . 1 . Used . | . . . . . . . . . . . . . . . . . . . . . . . . Hacking Detections 53 | . 6 . 5 . . . 6 6 . . . . 11 . . . . 2 6 2 . 5 4 Full Trace Events 22 | . 2 . 3 . . . 4 4 . . . . 5 . . . . 1 1 . . 1 1 Feedback Events 2 | . . . . . . . . 1 . . . . 1 . . . . . . . . . . Corruption 2 | . . . . . . . . 1 . . . . 1 . . . . . . . . . . Feedback Blocked . | . . . . . . . . . . . . . . . . . . . . . . . . Robot Schematics Acquired 7 | . . . . . . . . . . . 3 . . . . 4 . . . . . . . Robots Built . | . . . . . . . . . . . . . . . . . . . . . . . . Authchips . | . . . . . . . . . . . . . . . . . . . . . . . . Time . | . . . . . . . . . . . . . . . . . . . . . . . . Total Robot Build Rating . | . . . . . . . . . . . . . . . . . . . . . . . . Part Schematics Acquired 28 | . . . . . . . . . . . 14 . 1 . . 10 . 2 . . . . 1 Parts Built 2 | . . . . . . . . . . . . . 2 . . . . . . . . . . Authchips . | . . . . . . . . . . . . . . . . . . . . . . . . Time 47 | . . . . . . . . . . . . . 47 . . . . . . . . . . Total Part Build Rating 10 | . . . . . . . . . . . . . 10 . . . . . . . . . . Parts Repaired 2 | . 1 . . . . . 1 . . . . . . . . . . . . . . . . Time 86 | . 26 . . . . . 60 . . . . . . . . . . . . . . . . Parts Recycled . | . . . . . . . . . . . . . . . . . . . . . . . . Recycled Matter . | . . . . . . . . . . . . . . . . . . . . . . . . Retrieved Matter . | . . . . . . . . . . . . . . . . . . . . . . . . Retrieved Components . | . . . . . . . . . . . . . . . . . . . . . . . . Parts Scanalyzed 2 | . . . . . . . . . . . . . 1 . . . . . . . . . 1 Part Schematics Acquired 2 | . . . . . . . . . . . . . 1 . . . . . . . . . 1 Parts Damaged 1 | . . . . . . . . . . . . . . . . . . . . . . . 1 Bothacking | -11 -10 -10 -9 -9 -9 -8 -8 -7 -7 -7 -7 -6 -6 -6 -6 -6 -5 -5 -5 -5 -5 -5 -4 ------------ Run | Scr Mat Min Mat Min Exi Min Mat Fac Low Low Zio Pro Fac Low Low Dat Pro Fac Ext Cet Arc Hub Fac Used RIF Installer . | . . . . . . . . . . . . . . . . . . . . . . . . Robots Hacked . | . . . . . . . . . . . . . . . . . . . . . . . . Non-combat . | . . . . . . . . . . . . . . . . . . . . . . . . Combat . | . . . . . . . . . . . . . . . . . . . . . . . . Robot Hacks Applied . | . . . . . . . . . . . . . . . . . . . . . . . . Relay Couplers Released . | . . . . . . . . . . . . . . . . . . . . . . . . Fabnet Peak Effective % . | . . . . . . . . . . . . . . . . . . . . . . . . Robots Rewired 13 | . . . . . . . . . . . . . . . . . . . 13 . . . . Allies Hacked . | . . . . . . . . . . . . . . . . . . . . . . . . Hacks Repelled . | . . . . . . . . . . . . . . . . . . . . . . . . Allies | -11 -10 -10 -9 -9 -9 -8 -8 -7 -7 -7 -7 -6 -6 -6 -6 -6 -5 -5 -5 -5 -5 -5 -4 -------- Run | Scr Mat Min Mat Min Exi Min Mat Fac Low Low Zio Pro Fac Low Low Dat Pro Fac Ext Cet Arc Hub Fac Total Allies 21 | . 1 . . . . . . 1 . . . . . . . . 1 1 17 . . . . Largest Group 9 | . 1 1 1 . . . . 1 1 . . . . . . . 1 1 9 5 . . . Highest-Rated Group 313 | . 10 10 10 . . . . 10 10 . . . . . . . 96 26 313 149 . . . Highest-Rated Ally 96 | . 10 10 10 . . . . 10 10 . . . . . . . 96 26 39 31 . . . Total Orders . | . . . . . . . . . . . . . . . . . . . . . . . . Ally Attacks 108 | . . . . . . . . . . . . . . . . . 11 . 59 38 . . . Total Damage 2348 | . . . . . . . . . . . . . . . . . 521 . 1146 681 . . . Kills 17 | . . . . . . . . . . . . . . . . . 3 . 12 2 . . . Allies Corrupted 1 | . . . . . . . . . . . . . . . . . 1 . . . . . . Allies Melted . | . . . . . . . . . . . . . . . . . . . . . . . . Intel | -11 -10 -10 -9 -9 -9 -8 -8 -7 -7 -7 -7 -6 -6 -6 -6 -6 -5 -5 -5 -5 -5 -5 -4 ------- Run | Scr Mat Min Mat Min Exi Min Mat Fac Low Low Zio Pro Fac Low Low Dat Pro Fac Ext Cet Arc Hub Fac Robot Analysis Total 6 | . 2 . 1 . . . 2 . . . . . . . . . . 1 . . . . . Derelict Logs Recovered 9 | . . . . . . . . . 2 . 2 1 . 1 3 . . . . . . . . Drone Launches . | . . . . . . . . . . . . . . . . . . . . . . . . Drone Recoveries . | . . . . . . . . . . . . . . . . . . . . . . . . Exploration | -11 -10 -10 -9 -9 -9 -8 -8 -7 -7 -7 -7 -6 -6 -6 -6 -6 -5 -5 -5 -5 -5 -5 -4 ------------- Run | Scr Mat Min Mat Min Exi Min Mat Fac Low Low Zio Pro Fac Low Low Dat Pro Fac Ext Cet Arc Hub Fac Turns Passed 16535 | 81 662 213 1289 143 297 149 690 985 181 214 322 159 2182 717 715 135 769 2152 1388 628 182 1130 1152 Spaces Moved 12822 | 58 506 162 724 128 289 283 533 1215 345 396 697 263 2578 403 399 85 446 951 694 281 93 435 858 Core 112 | 8 . . . . . . . . . . . . 1 . . . . . . . . . 103 Treads 2884 | . . . 273 . . . . . . . . . 114 403 399 85 446 556 . 53 93 435 27 Legs 1564 | . . . 247 . . . . . . . . . . . . . . 395 694 228 . . . Wheels 1073 | 50 506 162 36 . . . . . . . . . . . . . . . . . . . 319 Hover 6780 | . . . 168 128 289 283 533 1215 345 396 697 263 2463 . . . . . . . . . . Flight 409 | . . . . . . . . . . . . . . . . . . . . . . . 409 Fastest Speed 30 | 50 80 115 42 102 102 42 42 40 45 45 45 43 43 160 160 160 160 120 120 120 160 160 30 Average Speed 93 | 87 85 115 123 102 102 42 42 44 45 45 45 45 62 160 160 160 160 165 153 140 160 163 79 Slowest Speed 650 | 200 95 115 260 102 102 42 42 106 45 45 45 108 650 160 160 160 160 330 190 190 160 240 166 Overloaded Moves . | . . . . . . . . . . . . . . . . . . . . . . . . Propulsion Burnouts . | . . . . . . . . . . . . . . . . . . . . . . . . Robots Hopped 1 | . . . . . . . . . . . . . . . . . . . . . . . 1 Cave-ins Triggered . | . . . . . . . . . . . . . . . . . . . . . . . . Exploration Rate (%) 54 | 4 95 40 63 33 59 44 50 35 49 68 84 49 54 56 63 70 60 29 76 70 97 43 15 Regions Visited 23 Branch Regions 16 Pre-discovered Areas 4 | . . . . . . . . . . . 2 . . 1 . 1 . . . . . . . Known Exits Taken 6 | . 1 . 1 . . . . 1 . . . . 1 . . . . 1 . . . 1 . Unknown Exits Taken 17 | 1 . 1 . 1 1 1 1 . 1 1 1 1 . 1 1 1 1 . 1 1 1 . . Scrap Searched 18 | . . . . 2 . 1 . . 6 1 3 1 . . 4 . . . . . . . . Spaces Dug 28 | . . . . . . . . 1 . . . . 9 . . . . 4 . . . 1 13 Terrain Destroyed 402 | . 7 . . . . . 11 1 . 36 . 40 31 12 4 . 1 40 19 32 4 51 113 Melee 28 | . . . . . . . . 1 . . . . 9 . . . . 4 . . . 1 13 Projectile 106 | . . . . . . . . . . . . . . 5 3 . 1 4 16 32 4 32 9 AOE 264 | . 7 . . . . . 11 . . 36 . 40 22 5 . . . 31 3 . . 18 91 Terrain Rammed . | . . . . . . . . . . . . . . . . . . . . . . . . Walls Destroyed . | . . . . . . . . . . . . . . . . . . . . . . . . Machines Disabled . | . . . . . . . . . . . . . . . . . . . . . . . . Actions | -11 -10 -10 -9 -9 -9 -8 -8 -7 -7 -7 -7 -6 -6 -6 -6 -6 -5 -5 -5 -5 -5 -5 -4 --------- Run | Scr Mat Min Mat Min Exi Min Mat Fac Low Low Zio Pro Fac Low Low Dat Pro Fac Ext Cet Arc Hub Fac Total 15998 | 73 654 170 960 134 291 312 947 1611 367 411 704 277 3023 433 430 84 467 1373 953 424 109 678 1113 Wait 1753 | . 101 . 91 2 1 29 368 342 20 3 5 1 254 1 . . 3 283 49 21 . 107 72 Move 12796 | 57 505 161 723 127 288 282 532 1214 344 395 696 262 2576 402 398 84 445 950 693 280 92 434 856 Hop 1 | . . . . . . . . . . . . . . . . . . . . . . . 1 Pick Up 91 | 4 . . 11 . 1 . 3 7 . . . . 16 1 . . . 5 13 14 . 7 9 Fast Attach 156 | 6 4 . 17 . . . 4 5 . . 1 . 27 . 4 . 2 16 9 14 . 20 27 Attach 70 | . 1 . 3 . . . 2 2 . . . 1 11 3 1 . . 9 6 6 3 6 16 Detach 39 | . . . 6 . . . 2 . . . . . 9 1 . . 1 7 1 2 . 5 5 Swap 97 | . 1 . 4 1 . 1 6 10 . 3 1 2 20 2 . . 1 13 13 9 1 7 2 Drop 144 | . 1 . 14 1 1 . 7 9 . . 1 . 32 2 2 . . 6 22 20 . 12 14 Fire 659 | 6 39 9 91 3 . . 23 21 . 10 . 11 53 21 20 . 15 80 37 58 12 77 73 Melee 47 | . . . . . . . . 1 2 . . . 10 . . . . 4 . . . 1 29 Ram 9 | . . . . . . . . . . . . . . . . . . . . . . . 9 Kick . | . . . . . . . . . . . . . . . . . . . . . . . . Crush 2 | . . . . . . . . . . . . . . . . . . . . . . 2 . Escape Stasis 25 | . . . . . . . . . . . . . 15 . . . . . 10 . . . . Rewire 109 | . 2 . . . . . . . 1 . . . . . 5 . . . 100 . 1 . . Trap . | . . . . . . . . . . . . . . . . . . . . . . . . Miscellaneous . | . . . . . . . . . . . . . . . . . . . . . . . . Route ------- -11/Scrapyard -10/Materials (discovered 4 exits: *Mat x3 / *Min) -10/Mines -9/Materials (discovered 2 exits: *Min x2) -9/Mines (discovered 2 exits: *Mat / *Exi) -9/Exiles -8/Mines -8/Materials -7/Factory (discovered 4 exits: *Fac / Sto / *Low x2) -7/Lower Caves -7/Lower Caves -7/Zion -6/Proximity Caves -6/Factory (discovered 3 exits: *Fac / *Low x2) -6/Lower Caves -6/Lower Caves (discovered 2 exits: *Fac / *Dat) -6/Data Miner -5/Proximity Caves -5/Factory (discovered 5 exits: *Fac / Upp x2 / *Ext x2) -5/Extension (discovered 3 exits: *Fac x2 / *Cet) -5/Cetus (discovered 2 exits: *Fac / *Arc) -5/Archives (discovered 3 exits: *Fac / *Hub x2) -5/Hub_04(d) -4/Factory (discovered 2 exits: [*Res x2]) History --------- Turn | Location | Event 18 | -11/Scrapyard | Discovered new exit (range 15) 82 | -11/Scrapyard | Entered Materials 155 | -10/Materials | Discovered new exit (range 8) 311 | -10/Materials | Build established: Mutant 353 | -10/Materials | Discovered new exit (range 13) 394 | -10/Materials | Central database locked down 545 | -10/Materials | Lost 3 parts (1p1n1w) 559 | -10/Materials | Identified exit to Mines 595 | -10/Materials | Discovered new exit (range 16) 660 | -10/Materials | Discovered new exit (range 5) 702 | -10/Materials | Repaired Assault Rifle 744 | -10/Materials | Entered Mines 744 | -10/Mines | Accompanied by 1 ally 853 | -10/Mines | Core integrity fell below 50% 953 | -10/Mines | Discovered new exit (range 3) 957 | -10/Mines | Entered Materials 957 | -9/Materials | Accompanied by 1 ally 957 | -9/Materials | Evolved 2 slots: Propulsion x1, Weapon x1 1090 | -9/Materials | Lost 4 parts (1p1n2w) 1272 | -9/Materials | Identified exit to Mines 1272 | -9/Materials | Central database locked down 1349 | -9/Materials | Build established: Scavenger-Gunner 2246 | -9/Materials | Entered Mines 2247 | -9/Mines | Assembled infested the area 2250 | -9/Mines | Met a Derelict bent on vengeance 2256 | -9/Mines | Core integrity fell below 50% 2328 | -9/Mines | Discovered new exit (range 11) 2385 | -9/Mines | Deemed a non-threat by the Exiles lab entrance 2385 | -9/Mines | Discovered new exit (range 5) 2389 | -9/Mines | Entered Exiles 2415 | -9/Exiles | Met 8R-AWN 2431 | -9/Exiles | Met EX-HEX 2461 | -9/Exiles | Met EX-BIN 2472 | -9/Exiles | Aligned with FarCom system 2473 | -9/Exiles | Given EX-Vault access code 2496 | -9/Exiles | Build established: Gunner 2497 | -9/Exiles | Opened EX-Vault 2522 | -9/Exiles | Warned to stay clear of 0b10 Research branches 2590 | -9/Exiles | Found Cloak of Protection 2642 | -9/Exiles | Met EX-DEC 2678 | -9/Exiles | Discovered new exit (range 10) 2686 | -9/Exiles | Left Exiles lab with Cloak of Protection 2686 | -9/Exiles | Entered Mines 2832 | -8/Mines | Discovered new exit (range 8) 2835 | -8/Mines | Entered Materials 2835 | -8/Materials | Evolved 2 slots: Utility x2 2911 | -8/Materials | Repaired Aerolev Unit 2987 | -8/Materials | Build established: Skirmisher 3508 | -8/Materials | Discovered new exit (range 15) 3523 | -8/Materials | Central database locked down 3525 | -8/Materials | Entered Factory 3525 | -7/Factory | Evolved 2 slots: Propulsion x1, Utility x1 4037 | -7/Factory | Discovered new exit (range 16) 4260 | -7/Factory | Identified exit to Storage 4260 | -7/Factory | Identified exit to Lower Caves 4485 | -7/Factory | Garrison activated, responded to threat 4510 | -7/Factory | Entered Lower Caves 4510 | -7/Lower Caves | Accompanied by 1 ally 4581 | -7/Lower Caves | Learned 12 Factory zone layouts 4637 | -7/Lower Caves | Learned Factory terminal intel 4664 | -7/Lower Caves | Encountered a Warlord checkpoint 4685 | -7/Lower Caves | Discovered new exit (range 12) 4691 | -7/Lower Caves | Entered another Lower Caves area 4728 | -7/Lower Caves | Encountered a Warlord checkpoint 4819 | -7/Lower Caves | Discovered new exit (range 8) 4905 | -7/Lower Caves | Entered Zion 4936 | -7/Zion | Discovered new exit (range 15) 4946 | -7/Zion | System corruption cleaned by Quarantine Array 4978 | -7/Zion | Learned location of Armory (-4) 5005 | -7/Zion | Found Prototype Device 5005 | -7/Zion | Identified Mobile Refinery Mk. CCLXVII 5037 | -7/Zion | Learned Factory security intel 5070 | -7/Zion | Build established: Tank 5113 | -7/Zion | Given A8's code to call for help 5131 | -7/Zion | Learned Factory machine intel 5141 | -7/Zion | Given the Hacking Drone Bay 5227 | -7/Zion | Entered Proximity Caves 5304 | -6/Proximity Caves | Attracted the attention of an 0b10 checkpoint 5349 | -6/Proximity Caves | Spotted B-75 Beast 5371 | -6/Proximity Caves | Discovered new exit (range 8) 5386 | -6/Proximity Caves | Entered Factory 5386 | -6/Factory | Evolved 2 slots: Power x1, Utility x1 5389 | -6/Factory | Loaded intel: 256 machine locations 5390 | -6/Factory | Loaded intel: 26 terminal locations 5847 | -6/Factory | Discovered new exit (range 15) 5982 | -6/Factory | Lost 5 parts (3n2w) 6569 | -6/Factory | Identified exit to Lower Caves 6743 | -6/Factory | Discovered new exit (range 15) 6998 | -6/Factory | Build established: Mutant 7231 | -6/Factory | Fabricated Lgt. Angular Momentum Engine? 7568 | -6/Factory | Entered Lower Caves 7771 | -6/Lower Caves | Attracted the attention of an 0b10 checkpoint 8108 | -6/Lower Caves | Build established: Tank 8277 | -6/Lower Caves | Discovered new exit (range 7) 8285 | -6/Lower Caves | Entered another Lower Caves area 8329 | -6/Lower Caves | Discovered new exit (range 12) 8463 | -6/Lower Caves | Learned Factory security intel 8895 | -6/Lower Caves | Discovered new exit (range 10) 8917 | -6/Lower Caves | Attracted the attention of an 0b10 checkpoint 8917 | -6/Lower Caves | Learned Factory trap positions 8973 | -6/Lower Caves | Learned Factory security intel 9000 | -6/Lower Caves | Entered Data Miner 9000 | -6/Data Miner | Discovered new exit (range 6) 9031 | -6/Data Miner | Met Data Miner 9061 | -6/Data Miner | Learned location of Section 7 (-3) 9061 | -6/Data Miner | Acquired the access code to Warlord's prototype stash 9093 | -6/Data Miner | Received God Mode back door access code from Data Miner 9135 | -6/Data Miner | Entered Proximity Caves 9258 | -5/Proximity Caves | Build established: Gunner 9395 | -5/Proximity Caves | Escorted by Enhanced Grunt 9562 | -5/Proximity Caves | System corruption reached 10% 9854 | -5/Proximity Caves | Discovered new exit (range 11) 9904 | -5/Proximity Caves | Entered Factory 9904 | -5/Factory | Evolved 2 slots: Utility x1, Weapon x1 9905 | -5/Factory | Identified exit to Extension 9906 | -5/Factory | Loaded intel: 81 trap records 10289 | -5/Factory | Lost 4 parts (2n1u1w) 10606 | -5/Factory | Build established: Skirmisher 10949 | -5/Factory | Identified exit to Upper Caves 10978 | -5/Factory | Incoming investigation squad redirected 11002 | -5/Factory | Garrison activated, responded to threat 11103 | -5/Factory | Destroyed 7 combat bots 11187 | -5/Factory | Build established: Scavenger-Tank 11313 | -5/Factory | Lost 4 parts (2n2w) 11314 | -5/Factory | Destroyed 7 combat bots 11442 | -5/Factory | Discovered new exit (range 13) 11909 | -5/Factory | Build established: Scavenger-Gunner 12056 | -5/Factory | Entered Extension 12087 | -5/Extension | Energy Cycler disabled 12087 | -5/Extension | Rescued a captive Derelict 12087 | -5/Extension | Rescued a captive Derelict 12087 | -5/Extension | Rescued a captive Derelict 12087 | -5/Extension | Rescued a captive Derelict 12088 | -5/Extension | Rescued a captive Derelict 12089 | -5/Extension | Rescued a captive Derelict 12090 | -5/Extension | Rescued a captive Derelict 12093 | -5/Extension | Rescued a captive Derelict 12094 | -5/Extension | Rescued a captive Derelict 12094 | -5/Extension | Rescued a captive Derelict 12095 | -5/Extension | Rescued a captive Derelict 12097 | -5/Extension | Rescued a captive Derelict 12098 | -5/Extension | Identified exit to Factory 12108 | -5/Extension | Rescued a captive Derelict 12117 | -5/Extension | Rescued a captive Derelict 12472 | -5/Extension | Incoming investigation squad redirected 12566 | -5/Extension | Spotted B-75 Beast 12607 | -5/Extension | Destroyed B-75 Beast 12625 | -5/Extension | Lost 8 parts (2p1n2u3w) 12638 | -5/Extension | Spotted B-75 Beast 12648 | -5/Extension | Destroyed B-75 Beast 12673 | -5/Extension | Extracted ID and sensor layout for unrecognized location from A7's data core 13338 | -5/Extension | Discovered new exit (range 6) 13444 | -5/Extension | Entered Cetus 13444 | -5/Cetus | Accompanied by 5 allies 13471 | -5/Cetus | Spotted Cetus Guard 13471 | -5/Cetus | Spotted Cetus Guard 13474 | -5/Cetus | Spotted Cetus Guard 13474 | -5/Cetus | Spotted Cetus Guard 13483 | -5/Cetus | Destroyed Cetus Guard 13494 | -5/Cetus | Allies destroyed Cetus Guard 13501 | -5/Cetus | Destroyed Cetus Guard 13506 | -5/Cetus | Destroyed Cetus Guard 13552 | -5/Cetus | Destroyed 7 combat bots 13569 | -5/Cetus | Cetus Manufacturing Module disabled 13756 | -5/Cetus | Discovered new exit (range 15) 13818 | -5/Cetus | Spotted Cetus Guard 13830 | -5/Cetus | Spotted Cetus Guard 13855 | -5/Cetus | Spotted Cetus Guard 13870 | -5/Cetus | Destroyed Cetus Guard 13873 | -5/Cetus | Destroyed Cetus Guard 13877 | -5/Cetus | Destroyed Cetus Guard 13906 | -5/Cetus | Lost 8 parts (2p3n3w) 13906 | -5/Cetus | Spotted Cetus Guard 13928 | -5/Cetus | Destroyed Cetus Guard 13982 | -5/Cetus | Discovered exit to Factory (range 15) 13992 | -5/Cetus | Met Revision 17 14072 | -5/Cetus | Entered Archives 14104 | -5/Archives | Met Zhirov 14110 | -5/Archives | Reinforcements dispatched to Archives 14112 | -5/Archives | Unable to access archive contents 14118 | -5/Archives | Discovered new exit (range 15) 14154 | -5/Archives | Discovered exit to Factory (range 16) 14155 | -5/Archives | Reinforcements dispatched to Archives 14157 | -5/Archives | Zhirov warped through subspace 14175 | -5/Archives | Zhirov detonated Archives 14206 | -5/Archives | Lost 6 parts (2p1u3w) 14234 | -5/Archives | Discovered new exit (range 13) 14254 | -5/Archives | Entered Hub_04(d) 14354 | -5/Hub_04(d) | Core integrity fell below 50% 14389 | -5/Hub_04(d) | Discovered exit to Factory (range 9) 14818 | -5/Hub_04(d) | Destroyed 8 combat bots 14853 | -5/Hub_04(d) | Lost 5 parts (1p1n3u) 14969 | -5/Hub_04(d) | Garrison activated, responded to threat 15154 | -5/Hub_04(d) | First assault squad dispatched 15384 | -5/Hub_04(d) | Entered Factory 15384 | -4/Factory | Evolved 2 slots: Utility x2 15884 | -4/Factory | First assault squad dispatched 15907 | -4/Factory | Incoming investigation squad redirected 15910 | -4/Factory | Incoming assault squad redirected 15999 | -4/Factory | Cargo convoy interrupted 16003 | -4/Factory | Spotted Striker 16028 | -4/Factory | Destroyed Striker 16188 | -4/Factory | Released all parts (6) 16195 | -4/Factory | Destroyed 10 combat bots 16205 | -4/Factory | Incoming assault squad redirected 16209 | -4/Factory | Core integrity fell below 50% 16217 | -4/Factory | System corruption reached 10% 16219 | -4/Factory | Lost 17 parts (2p3n4u8w) 16238 | -4/Factory | Discovered new exit (range 8) 16272 | -4/Factory | Core integrity fell below 20% 16407 | -4/Factory | Garrison activated, responded to threat 16509 | -4/Factory | Discovered new exit (range 12) 16536 | -4/Factory | Destroyed by S-27 Virus with Autogun Last Messages --------------- 16503_ ALERT: Suspicious intruders detected, dispatching Cutter reinforcements to area. 16505_ Slug penetrates Wall. 16505_ T-07 Excavator destroyed. 16505_ Slug penetrates Door. 16506_ Slug penetrates Wall. 16509_ EXIT=FOUND 16516_ S-27 Virus destroyed. 16518_ Chainsword destroyed. 16524_ Acquired Unknown Ballistic Gun. 16524_ Identified Autogun. 16525_ Hpw. Shock Rifle destroyed. 16527_ Adv. Reaction Control System destroyed. 16529_ Tesla Rifle destroyed. 16531_ Destroyed VTOL Module. 16532_ System corrupted: Matter fused (-5). 16532_ Lgt. Fission Core destroyed. 16533_ System corrupted: Autogun jammed. 16533_ Slug penetrates Terminal. 16533_ Terminal disabled. Map ----- +----------------------------------------------------+ | ?????????????????????????????????????????????????? | | ????????????##???????????????????????????????????? | | ???????????? ??????????????????????????????????? | | ???????????? ??????????????????????????????????? | | ???????????? ??????????????????????????????????? | | ??????# ????] ????????????????????????????????? | | ??????# ??? ????????????????????????????????? | | ??????# =??"" """ #?????????????????????????????? | | ??????# """ """ #?????????????????????????????? | | ??????# """ """ #?????????????????????????????? | | ??????? "" "" #??###########????????????????? | | ????????? "" "" # #????????????????? | | ??????????? #""" ! ##???????????????? | | ?????????????= ?#""" Y????????????????? | | ??????#########+####"S ?????????????????? | | ??????# #""" #????????????????? | | ??????# # "" """ #????????????????? | | ??????# + """ #????????????????? | | ??????# * c# ] """ #????????????????? | | ??????# =%! # h "" #????????????????? | | ??????# !|###### # C "" #????????????????? | | ####### #????# # ! h #????????????????? | | #????# # #????????????????? | | #????# ######/#######????????????????? | | #????# #??###s###????????????????????? | | #????# #??# s@c #????????????????????? | | ##???? ??# c"s!#????????????????????? | | ########"###"#????< H "Ts #????????????????????? | | %!# ! "#??? ### #????????????????????? | | # ##??####??# #????????????????????? | | % # % #?????????###+###????????????????????? | | # #????????????????????????????????????? | | # #????????????????????????????????????? | | # """ #????????????????????????????????????? | | # """" ###??????????????????????????????????? | | " """"" " #??????????????????????????????????? | | ########### #??????????????????????????????????? | | ##?????????##??????????????????????????????????? | | #??????????????????????????????????????????????? | | #??????????????????????????????????????????????? | | ####?????????????????????????????????????????????? | | [!%#?????????????????????????????????????????????? | | =!##?????????????????????????????????????????????? | | =##??????????????????????????????????????????????? | | ##???????????????????????????????????????????????? | | #????????????????????????????????????????????????? | | ?????????????????????????????????????????????????? | | ?????????????????????????????????????????????????? | | ?????????????????????????????????????????????????? | | ???????##############????????????????????????????? | +----------------------------------------------------+ Best States ------------- Heat Dissipation 105 Coolant Potential 100 Energy Generation 41 Energy Capacity 885 Matter Stores 300 Matter Capacity 300 Sight Range 16 Terrain Scan Density 10 ECM Strength 2 Jamming Range 16 Cloak Strength 5 Additional Mass Support 9 Armor Coverage 450 Resistance: KI 20 Resistance: TH 30 Weapon Cycling 20 Phase Shifting 5 Evasion (%) 76 Targeting Accuracy 11 Melee Accuracy 16 Target Analysis 9 Recoil Reduction 4 Matter Filtering 30 Particle Charging 25 Kinecelleration 30 Offensive Hacking 10 Item Schematics ----------------- Matter Filter | -7/Zion | Archive Matter Compressor | -7/Zion | Archive Med. Treads | -7/Zion | Archive Beamcaster | -7/Zion | Archive Mak. System Shield | -7/Zion | Archive Imp. Heavy Armor Plating | -7/Zion | Archive Recalibrator | -7/Zion | Archive Imp. Kinecellerator | -7/Zion | Archive Disruptor Cannon | -7/Zion | Archive Arm. Huge Wheel | -7/Zion | Archive Lgt. Angular Momentum Engine | -7/Zion | Archive Imp. Medium Treads | -7/Zion | Archive Hpw. Shock Rifle | -7/Zion | Archive Gauss Rifle | -7/Zion | Archive Phase Shifter | -6/Factory | Scanalyzed Combat Drone Bay | -6/Data Miner | Free Lgt. Regenerative Plating | -6/Data Miner | Free Enh. Armored Leg | -6/Data Miner | Free Imp. Matter Compressor | -6/Data Miner | Free Thunder Hammer | -6/Data Miner | Free Adv. Medium Treads | -6/Data Miner | Free Graphene Brace | -6/Data Miner | Free Dispersion Rifle | -6/Data Miner | Free Adv. Component Analysis Suite | -6/Data Miner | Free Arm. Heavy Treads | -6/Data Miner | Free Railgun | -5/Factory | Hacked HERF Cannon | -5/Factory | Hacked Centrium Heavy Treads | -4/Factory | Scanalyzed Robot Schematics ------------------ R-06 Scavenger | -7/Zion | Archive S-27 Virus | -7/Zion | Archive Y-54 Guardian | -7/Zion | Archive R-10 Processor | -6/Data Miner | Free H-66 Slayer | -6/Data Miner | Free A-15 Conveyor | -6/Data Miner | Free W-44 Eye | -6/Data Miner | Free Fabricated ------------ Lgt. Angular Momentum Engine | x2 | -6/Factory Alien Tech Used ----------------- None Achievements -------------- None Challenges ------------ None Game ------ Seed BarrageDisruptorStorm Manual? 0 Play Time 05:11:07 Cumulative 173.1 hours Start 2022.05.17 @ 08:02:38 End 2022.05.17 @ 15:40:29 Sessions 3 Manual Loads 0 Difficulty Rogue Special Mode None Game No. 66 Rogue 59 Adventurer 0 Explorer 7 Win Type - Total 1 Types 0/0/1/0/0/0/0/0/0 Lore% 61 Gallery% 56 Achievement% 47 Wizard Run 0 Options --------- ASCII 0 Keyboard 0 Movement Mouse Keybinds 0 Fullscreen 1 Font 16/Cog Map View 76x50 Tactical HUD 1 Map Filters NONE Filters NONE Steam 1 RUN: e9f0ad2e-b5a4-4707-9ff8-431387cbc21d